bitfinex-derivatives/quotes_ETHF0:USTF0_20240913
["timestamp","ask_amount","ask_price","bid_price","bid_amount"]
[1726224880484,0.42211,2368.9,2368.7,0.42214]
[1726224883792,4.0084,2369.0,2368.7,0.42215]
[1726224883993,3.5863,2369.0,2368.6,3.3]
[1726224884199,3.5863,2369.0,2368.8,0.42211]
[1726224884492,3.5863,2369.0,2368.9,0.42211]
[1726224884903,7.8079,2369.0,2368.9,0.42211]
[1726224885090,0.3785,2369.0,2368.9,0.42211]
[1726224887096,0.3785,2369.0,2368.8,0.42212]
[1726224887289,0.8006,2369.0,2368.8,0.42212]
[1726224887494,3.2078,2368.9,2368.7,0.42213]
[1726224887703,0.8006,2369.0,2368.8,0.42213]
[1726224887892,3.2078,2368.9,2368.8,0.42213]
[1726224888092,3.2078,2368.9,2368.5,5.15584]
[1726224888287,0.8006,2369.0,2368.8,0.42212]
[1726224888597,0.80061,2369.0,2368.7,0.42214]
[1726224888796,0.42211,2368.9,2368.7,0.42214]
[1726224889009,1.05533,2368.8,2368.2,0.099]
[1726224889304,0.42221,2368.4,2368.2,0.42223]
[1726224889490,1.1844,2368.3,2368.2,0.42223]
[1726224889894,1.1844,2368.3,2367.9,5.14613]
[1726224890091,1.1844,2368.3,2368.2,0.42224]
[1726224891101,1.1844,2368.3,2368.1,0.42224]
[1726224891301,1.60662,2368.3,2368.1,0.42225]
[1726224891605,1.1844,2368.3,2368.1,0.42225]
[1726224892805,1.1844,2368.3,2367.9,0.7904]
[1726224892992,3.2078,2368.2,2367.9,0.7904]
[1726224893192,3.2078,2368.2,2367.9,1.21268]
[1726224893397,3.2078,2368.2,2367.9,0.82528]
[1726224893602,3.2078,2368.2,2367.9,0.42228]
[1726224894491,1.1844,2368.3,2368.0,0.42227]
[1726224895507,1.60662,2368.3,2368.0,0.42227]
[1726224895704,1.60662,2368.3,2367.9,0.42228]
[1726224896101,3.63004,2368.2,2367.9,0.42228]
[1726224896494,0.42224,2368.2,2367.8,3.72229]
[1726224896700,3.63004,2368.2,2367.9,0.42228]
[1726224896900,3.2078,2368.2,2367.9,0.42228]
[1726224897801,3.63004,2368.2,2367.9,0.42228]
[1726224898110,0.42224,2368.2,2367.9,0.42228]
[1726224898297,3.63004,2368.2,2367.9,0.42228]
[1726224900309,0.42226,2368.1,2367.8,3.72229]
[1726224900495,1.1844,2368.3,2367.9,0.42228]
[1726224900698,0.42225,2368.2,2367.9,0.42228]
[1726224900911,0.42226,2368.1,2367.9,0.42228]
[1726224901397,1.1844,2368.3,2367.6,4.1094]
[1726224901603,3.2078,2367.9,2367.7,0.42232]
[1726224901907,0.3965,2367.8,2367.7,0.42232]
[1726224902606,5.14837,2368.3,2367.9,0.42228]
[1726224902607,3.63006,2368.1,2367.9,0.42228]
[1726224902904,0.3906,2368.1,2368.0,0.42227]
[1726224903111,0.81285,2368.1,2368.0,0.42227]
[1726224903303,0.3906,2368.1,2367.9,3.3]
[1726224903497,0.3906,2368.1,2368.0,0.42227]
[1726224903908,0.3906,2368.1,2368.0,0.3794]
[1726224904109,0.81285,2368.1,2368.0,0.3794]
[1726224904501,0.3906,2368.1,2368.0,0.80167]
[1726224905612,0.81285,2368.1,2368.0,0.80167]
[1726224905802,0.3906,2368.1,2368.0,0.80167]
[1726224906002,0.42224,2368.2,2368.1,0.42225]
[1726224906708,1.21503,2368.3,2368.0,0.3794]
[1726224906908,0.42224,2368.2,2368.1,0.42224]
[1726224907305,1.21503,2368.3,2368.2,0.42224]
[1726224907706,0.42224,2368.2,2368.1,0.42224]
[1726224908108,1.21503,2368.3,2368.0,0.3794]
[1726224908313,1.21503,2368.3,2368.1,0.42225]
[1726224908711,0.42224,2368.2,2368.1,0.42225]
[1726224910614,0.7928,2368.3,2368.0,0.3794]
[1726224910814,0.42224,2368.2,2368.1,0.42224]
[1726224913018,0.42224,2368.2,2368.1,0.42225]
[1726224913216,0.42224,2368.2,2367.9,3.6824]
[1726224913718,0.42224,2368.2,2368.0,0.42226]
[1726224914014,0.7928,2368.3,2368.0,0.42227]
[1726224914015,0.42226,2368.1,2368.0,0.42227]
[1726224916711,0.42226,2368.1,2367.9,0.42228]
[1726224916909,0.4003,2368.0,2367.9,0.42228]
[1726224920318,0.4003,2368.0,2367.9,1.94228]
[1726224921130,0.82257,2368.0,2367.9,1.94228]
[1726224921422,0.4003,2368.0,2367.9,1.94228]
[1726224921921,0.82257,2368.0,2367.8,1.94229]
[1726224922120,0.3875,2367.9,2367.8,1.94231]
[1726224922321,0.7943,2367.9,2367.8,1.94231]
[1726224923827,1.21659,2367.9,2367.6,1.52]
[1726224924030,4.42439,2367.9,2367.7,0.42231]
[1726224924215,4.0021,2367.9,2367.7,0.42231]
[1726224924416,4.4244,2367.9,2367.7,0.42231]
[1726224925329,0.42231,2367.8,2367.7,0.42231]
[1726224925527,4.4244,2367.9,2367.7,0.42231]
[1726224926320,4.4244,2367.9,2367.6,1.52]
[1726224926530,4.4244,2367.9,2367.8,0.42231]
[1726224926732,4.4244,2367.9,2367.7,0.42231]
[1726224926929,0.42231,2367.8,2367.7,0.42231]
[1726224927330,4.0021,2367.9,2367.7,0.42231]
[1726224927629,4.0021,2367.9,2367.5,0.3833]
[1726224927630,0.42232,2367.8,2367.5,0.3833]
[1726224927827,4.4244,2367.9,2367.7,0.42232]
[1726224928030,6.63092392,2367.9,2367.7,0.42232]
[1726224928334,0.42231,2367.8,2367.7,0.42232]
[1726224928535,6.63092392,2367.9,2367.7,0.42232]
[1726224928927,6.63092392,2367.9,2367.6,1.94233]
[1726224928928,0.42232,2367.8,2367.6,1.94233]
[1726224929433,4.0021,2367.9,2367.4,3.2078]
[1726224929434,7.26436392,2367.9,2367.4,3.2078]
[1726224929632,7.26436392,2367.9,2367.4,4.7278]
[1726224929633,1.05577,2367.8,2367.4,4.7278]
[1726224929829,3.2078,2367.6,2367.5,0.42236]
[1726224930227,3.61,2367.6,2367.5,0.42236]
[1726224931329,4.03235,2367.6,2367.4,1.94237]
[1726224931631,0.76703815,2367.5,2367.4,1.52]
[1726224931832,0.76703815,2367.5,2367.4,1.94238]
[1726224932030,3.61,2367.6,2367.5,0.42236]
[1726224932433,5.26878117,2367.6,2367.5,0.42236]
[1726224932837,5.69113117,2367.6,2367.4,1.94237]
[1726224933133,5.69113117,2367.6,2367.5,0.02706185]
[1726224933332,5.69113117,2367.6,2367.5,0.44942185]
[1726224933333,4.86705229,2367.6,2367.5,0.44942185]
[1726224933532,1.65925229,2367.7,2367.6,0.42234]
[1726224933728,1.65925229,2367.7,2367.6,1.94234]
[1726224933930,2.08157229,2367.7,2367.6,0.44940185]
[1726224934237,1.65925229,2367.7,2367.6,0.44940185]
[1726224934533,6.85204392,2367.7,2367.6,0.44940185]
[1726224934736,6.80082392,2367.7,2367.6,0.02706185]
[1726224934931,2.20652392,2367.7,2367.6,6.19632969]
[1726224935127,1.65972282,2367.8,2367.7,0.42232]
[1726224935332,1.65972282,2367.9,2367.8,0.42231]
[1726224935631,1.65972282,2367.9,2367.8,1.94231]
[1726224936138,1.65972282,2368.0,2367.9,0.42229]
[1726224936337,2.20652392,2368.0,2367.9,0.42227]
[1726224936538,2.57572392,2368.1,2367.9,0.42227]
[1726224936728,2.20652392,2368.0,2367.9,0.42227]
[1726224936933,2.20652392,2368.0,2367.9,0.45305969]
[1726224937329,2.20652392,2368.0,2367.9,0.03078969]
[1726224937524,2.62879392,2368.0,2367.9,0.03078969]
[1726224937828,3.54348606,2368.1,2367.9,0.45307969]
[1726224938136,3.54348606,2368.1,2367.8,0.42229]
[1726224938639,3.12122606,2368.1,2367.8,0.42229]
[1726224938935,3.54349606,2368.1,2367.8,0.42229]
[1726224939132,3.54349606,2368.1,2367.9,0.42229]
[1726224939337,3.54349606,2368.1,2367.8,0.4223]
[1726224940332,3.54349606,2368.1,2367.7,0.3774]
[1726224940333,6.75129606,2368.1,2367.7,0.79971]
[1726224940636,3.2078,2367.8,2367.7,0.42231]
[1726224940943,3.2078,2367.8,2367.6,3.72233]
[1726224941235,2.8498248,2367.7,2367.5,0.82865]
[1726224941429,1.66047849,2367.6,2367.5,0.4063]
[1726224941626,1.66047849,2367.6,2367.5,0.82866]
[1726224942938,1.61173,2367.7,2367.5,0.82866]
[1726224943132,1.66043693,2367.6,2367.5,0.82866]
[1726224944640,2.08277693,2367.6,2367.5,0.82866]
[1726224944834,2.08277693,2367.6,2367.5,0.42236]
[1726224945032,1.66043693,2367.6,2367.5,0.42236]
[1726224945338,1.05591,2367.5,2367.2,0.099]
[1726224945640,1.05591,2367.5,2367.2,0.4224]
[1726224945641,1.66062657,2367.3,2367.2,0.4224]
[1726224946042,2.82242657,2367.3,2367.2,0.4224]
[1726224947533,2.82242657,2367.3,2367.0,3.6972]
[1726224947743,2.82242657,2367.3,2367.2,0.42241]
[1726224947744,1.1618,2367.3,2367.2,0.42241]
[1726224948039,2.82242657,2367.3,2367.2,0.42241]
[1726224950037,1.1618,2367.3,2367.2,0.42241]
[1726224950250,1.1618,2367.3,2367.0,3.6972]
[1726224950251,3.24482657,2367.3,2367.0,3.3]
[1726224950542,3.24482657,2367.3,2367.1,0.42243]
[1726224950949,3.24483657,2367.3,2367.0,3.72244]
[1726224951143,3.24483657,2367.3,2367.1,0.42243]
[1726224951352,0.42242,2367.2,2367.0,3.72244]
[1726224951640,2.08304657,2367.2,2367.0,3.72244]
[1726224951951,5.29084657,2367.2,2367.0,3.72244]
[1726224952947,5.29083657,2367.2,2367.0,3.72244]
[1726224953553,4.86842657,2367.2,2367.0,3.3]
[1726224953747,4.86842657,2367.2,2367.1,0.42243]
[1726224954251,3.2078,2367.2,2367.1,0.42243]
[1726224954438,4.86842657,2367.2,2367.1,0.42243]
[1726224955848,3.2078,2367.2,2367.1,0.42243]
[1726224956240,3.2078,2367.2,2367.1,1.94243]
[1726224956451,3.63021,2367.2,2367.1,1.94243]
[1726224956841,3.2078,2367.2,2367.1,1.94243]
[1726224957046,3.63021,2367.2,2367.1,1.94243]
[1726224957247,5.29083657,2367.2,2367.1,1.94243]
[1726224957445,5.29083657,2367.2,2367.1,1.52]
[1726224957656,5.29083657,2367.2,2367.0,0.42244]
[1726224957851,5.29083657,2367.2,2367.0,1.94244]
[1726224958053,4.86842657,2367.2,2367.1,0.42243]
[1726224958652,5.29084657,2367.2,2367.0,1.94244]
[1726224959251,1.66062657,2367.2,2367.1,0.42243]
[1726224961562,2.08303657,2367.2,2367.1,0.42243]
[1726224961762,1.66062657,2367.2,2367.1,0.42243]
[1726224961951,2.08303657,2367.2,2367.1,0.42243]
[1726224962148,3.24482657,2367.3,2367.1,1.94243]
[1726224962348,0.42241,2367.2,2367.1,1.52]
[1726224962558,2.08303657,2367.2,2367.1,1.52]
[1726224963153,2.08305657,2367.2,2367.0,1.94244]
[1726224963550,1.66062657,2367.2,2367.0,1.94244]
[1726224963751,0.42243,2367.1,2367.0,1.52]
[1726224963947,2.08305657,2367.1,2367.0,1.52]
[1726224964457,2.08305657,2367.1,2367.0,1.94245]
[1726224964657,5.29085657,2367.1,2367.0,1.52]
[1726224965160,5.28834957,2367.1,2367.0,1.52]
[1726224965356,0.42245,2367.0,2366.9,0.42247]
[1726224965859,4.86591957,2367.1,2367.0,0.42245]
[1726224966059,4.86591957,2367.1,2366.9,1.52]
[1726224966250,1.65811957,2367.2,2367.1,0.42243]
[1726224966452,1.65811957,2367.2,2367.1,1.52]
[1726224966659,3.24232957,2367.3,2367.1,1.94243]
[1726224966960,2.81991957,2367.3,2367.1,1.52]
[1726224967160,2.81991957,2367.3,2367.2,0.42241]
[1726224967555,1.1618,2367.3,2367.2,0.42241]
[1726224967956,4.86591957,2367.4,2367.3,0.4224]
[1726224968257,5.28829957,2367.4,2367.3,1.9424]
[1726224968748,4.86591957,2367.4,2367.3,1.9424]
[1726224968950,5.28829957,2367.4,2367.3,1.9424]
[1726224970966,4.86591957,2367.4,2367.3,1.9424]
[1726224971262,5.28829957,2367.4,2367.3,1.9424]
[1726224972467,4.86591957,2367.4,2367.3,1.9424]
[1726224972654,5.28829957,2367.4,2367.3,1.9424]
[1726224974866,4.86591957,2367.4,2367.3,1.9424]
[1726224975064,5.28829957,2367.4,2367.3,1.9424]
[1726224975258,3.63018,2367.4,2367.3,0.4224]
[1726224975564,5.84031442,2367.4,2367.3,0.4224]
[1726224976862,3.63018,2367.4,2367.3,0.4224]
[1726224977369,5.84031442,2367.4,2367.3,0.4224]
[1726224977563,5.41793442,2367.4,2367.3,0.4224]
[1726224978065,3.2078,2367.4,2367.3,0.4224]
[1726224978362,5.41793442,2367.4,2367.3,0.4224]
[1726224978862,3.2078,2367.4,2367.3,0.4224]
[1726224979266,3.63018,2367.4,2367.3,0.4224]
[1726224979459,5.84031442,2367.4,2367.3,0.4224]
[1726224979769,5.41793442,2367.4,2367.3,0.4224]
[1726224980355,5.84031442,2367.4,2367.3,0.4224]
[1726224980866,3.63018,2367.4,2367.3,0.4224]
[1726224981068,5.84031442,2367.4,2367.3,0.4224]
[1726224981566,5.41793442,2367.4,2367.3,0.4224]
[1726224983361,5.84031442,2367.4,2367.3,0.4224]
[1726224983560,2.63251442,2367.4,2367.3,0.4224]
[1726224983763,2.21013442,2367.4,2367.3,0.4224]
[1726224983961,2.21013442,2367.4,2367.3,5.7024]
[1726224984155,2.21013442,2367.6,2367.4,0.42238]
[1726224984358,1.659261,2367.6,2367.5,2.95861]
[1726224984558,1.659261,2367.6,2367.5,3.38097]
[1726224984765,0.42233,2367.7,2367.6,0.42234]
[1726224985066,0.42234,2367.6,2367.5,1.94235]
[1726224985265,2.21013442,2367.7,2367.4,2.95775]
[1726224985266,2.63246442,2367.7,2367.4,2.95775]
[1726224985472,1.65953252,2367.5,2367.4,3.38013]
[1726224990470,1.65953252,2367.5,2367.4,7.60413]
[1726224990661,2.21013442,2367.6,2367.5,0.42236]
[1726224990864,2.63247442,2367.6,2367.5,0.42236]
[1726224991174,2.21013442,2367.6,2367.5,0.42236]
[1726224992860,2.63247442,2367.6,2367.5,0.42236]
[1726224993070,2.21013442,2367.6,2367.5,0.42236]
[1726224993664,2.63247442,2367.6,2367.5,0.42236]
[1726224993862,6.38216606,2367.7,2367.6,0.42234]
[1726224994066,2.75202606,2367.7,2367.4,1.9018]
[1726224994266,2.21371746,2367.6,2367.5,0.42236]
[1726224995273,2.63605746,2367.7,2367.6,0.42234]
[1726224996277,2.21371746,2367.7,2367.6,6.16554]
[1726224996470,1.65989715,2367.9,2367.7,1.05582]
[1726224996774,1.65989715,2368.0,2367.9,0.42229]
[1726224996974,1.65989715,2368.0,2367.9,4.64549]
[1726224997368,2.47424715,2368.1,2368.0,0.42227]
[1726224997679,2.47424715,2368.1,2368.0,1.94227]
[1726224997680,0.81435,2368.1,2368.0,1.94227]
[1726224997878,0.3921,2368.1,2368.0,1.94227]
[1726224998074,0.81435,2368.1,2368.0,1.94227]
[1726224998475,2.05060243,2368.1,2368.0,1.94227]
[1726224998777,2.0505993,2368.1,2368.0,1.94227]
[1726224998975,0.3921,2368.1,2368.0,1.94227]
[1726224999675,2.0505632,2368.1,2368.0,1.94227]
[1726225001371,2.4728132,2368.1,2368.0,1.94227]
[1726225002074,2.0505632,2368.1,2368.0,1.94227]
[1726225002575,2.4728132,2368.1,2368.0,1.94227]
[1726225002786,2.0505632,2368.1,2368.0,1.94227]
[1726225005380,2.4728132,2368.1,2368.0,1.94227]
[1726225005584,2.0505632,2368.1,2368.0,1.94227]
[1726225006374,2.4728132,2368.1,2368.0,1.94227]
[1726225006581,2.0505632,2368.1,2368.0,1.94227]
[1726225006781,2.4728132,2368.1,2368.0,1.94227]
[1726225007081,2.0505632,2368.1,2368.0,1.94227]
[1726225007684,2.4728132,2368.1,2368.0,1.94227]
[1726225008185,2.0505632,2368.1,2368.0,1.94227]
[1726225008375,0.3921,2368.1,2368.0,1.94227]
[1726225008775,2.0572632,2368.2,2368.1,0.42225]
[1726225009284,0.3988,2368.2,2368.1,0.79325]
[1726225009980,1.6584632,2368.5,2368.1,13.8012]
[1726225010184,2.0340632,2368.7,2368.4,5.78331]
[1726225010377,0.3756,2368.7,2368.6,1.94216]
[1726225011587,0.42219,2368.5,2368.4,0.42219]
[1726225011783,1.65516837,2368.6,2368.5,0.42218]
[1726225012092,0.3756,2368.7,2368.6,0.42216]
[1726225013379,0.7751,2368.8,2368.7,0.42215]
[1726225013582,4.86296837,2369.0,2368.9,0.42211]
[1726225013786,5.61726837,2369.0,2368.9,1.94211]
[1726225014390,6.03936837,2369.0,2368.9,1.52]
[1726225014589,6.03936837,2369.0,2368.9,1.94211]
[1726225015095,5.61726837,2369.0,2368.9,1.94211]
[1726225015392,3.9621,2369.0,2368.9,1.94211]
[1726225016284,3.26882746,2369.3,2368.9,5.7416]
[1726225016285,4.86296837,2369.3,2368.9,5.7416]
[1726225016478,3.2078,2369.3,2369.2,1.94206]
[1726225020594,3.62984,2369.3,2369.2,1.94206]
[1726225020891,3.2078,2369.3,2369.2,1.94206]
[1726225021285,3.62984,2369.3,2369.2,1.94206]
[1726225021683,3.2078,2369.3,2369.2,1.94206]
[1726225024789,3.2078,2369.3,2369.2,1.94206]
[1726225025092,3.62984,2369.3,2369.2,1.94206]
[1726225025688,3.62984,2369.3,2369.2,1.52]
[1726225026294,3.62984,2369.3,2369.2,1.94206]
[1726225026681,3.62984,2369.3,2369.2,1.52]
[1726225027497,3.62984,2369.3,2369.1,1.94206]
[1726225028087,3.62984,2369.3,2369.2,1.94206]
[1726225028395,3.62984,2369.3,2369.2,1.52]
[1726225029489,5.91807837,2369.3,2369.0,0.42209]
[1726225029695,0.42206,2369.2,2369.1,1.52]
[1726225029990,3.62985,2369.3,2369.1,1.94207]
[1726225030394,3.62985,2369.3,2369.2,0.42206]
[1726225031000,3.62985,2369.3,2369.1,1.94206]
[1726225031200,3.62985,2369.3,2369.2,0.42206]
[1726225031494,3.62985,2369.3,2369.1,1.94206]
[1726225031792,0.42206,2369.2,2369.1,1.52]
[1726225032097,1.47721,2369.2,2369.1,1.52]
[1726225032599,3.2078,2369.3,2369.1,1.52]
[1726225032811,0.42206,2369.2,2369.1,1.52]
[1726225033688,1.47721,2369.2,2369.1,1.52]
[1726225034890,3.62985,2369.3,2369.2,0.42206]
[1726225035501,3.62985,2369.3,2369.1,1.94206]
[1726225036006,0.42206,2369.2,2368.8,1.42772]
[1726225036193,0.42206,2369.2,2369.1,1.52]
[1726225036803,1.47721,2369.2,2369.1,1.52]
[1726225037399,2.53248,2369.1,2369.0,1.52]
[1726225037601,0.42209,2369.0,2368.9,1.52]
[1726225037904,1.18649,2369.0,2368.9,1.52]
[1726225038311,1.59479,2369.0,2368.9,1.52]
[1726225038814,4.7278,2369.3,2369.0,0.42209]
[1726225038815,5.91807837,2369.3,2369.0,0.42209]
[1726225039020,0.42208,2369.1,2369.0,0.4073]
[1726225039317,0.42208,2369.1,2369.0,1.52]
[1726225040704,0.7817,2369.2,2369.0,1.52]
[1726225040904,0.42208,2369.1,2369.0,1.52]
[1726225042405,2.07724837,2369.1,2369.0,1.52]
[1726225042604,3.13244837,2369.1,2369.0,1.52]
[1726225042810,3.13244837,2369.1,2368.9,1.52]
[1726225042811,1.47735,2369.0,2368.9,1.52]
[1726225043003,3.62989,2369.0,2368.9,1.52]
[1726225043198,0.42213,2368.8,2368.6,5.02175]
[1726225043400,0.79683,2368.9,2368.7,1.52]
[1726225043607,0.79683,2368.9,2368.8,1.52]
[1726225044710,0.42214,2368.8,2368.6,0.42216]
[1726225044904,1.23193,2368.8,2368.7,1.94215]
[1726225045213,0.8098,2368.8,2368.7,1.94215]
[1726225045606,2.07724837,2369.1,2368.9,0.42211]
[1726225045607,0.42208,2369.1,2368.9,0.42211]
[1726225045915,0.42208,2369.1,2369.0,1.94209]
[1726225045916,0.8098,2369.1,2369.0,1.94209]
[1726225046101,1.05513,2369.3,2369.0,5.7408]
[1726225046102,1.65516837,2369.3,2369.0,5.7408]
[1726225046301,3.2078,2369.4,2369.3,0.42204]
[1726225046806,3.2078,2369.4,2369.3,0.79834]
[1726225047308,3.62982,2369.4,2369.3,0.3763]
[1726225047712,3.62982,2369.4,2369.3,0.79834]
[1726225047911,3.2078,2369.4,2369.3,0.79834]
[1726225048107,3.62982,2369.4,2369.3,0.79834]
[1726225048312,3.62982,2369.4,2369.3,0.756]
[1726225048606,3.2078,2369.4,2369.3,6.45395]
[1726225048807,3.2078,2369.4,2369.3,5.77204]
[1726225050220,3.2078,2369.4,2369.3,9.06204]
[1726225051322,1.65516837,2369.7,2369.6,0.42199]
[1726225051515,1.65516837,2369.7,2369.6,3.71199]
[1726225052916,1.65516837,2369.7,2369.6,3.29]
[1726225052917,0.42197,2369.7,2369.6,3.29]
[1726225053221,0.422,2369.6,2369.5,3.29]
[1726225053416,3.17402606,2369.6,2369.5,3.29]
[1726225054419,0.422,2369.6,2369.5,3.29]
[1726225055115,0.422,2369.6,2369.3,3.29]
[1726225055116,0.42202,2369.4,2369.3,3.29]
[1726225055311,3.18308788,2369.5,2369.3,3.71203]
[1726225055719,0.7621,2369.4,2369.3,3.71203]
[1726225055928,3.52317788,2369.4,2369.3,3.71203]
[1726225056223,3.52317788,2369.4,2369.3,3.29]
[1726225056616,3.52317788,2369.4,2369.3,3.71204]
[1726225057017,3.52317788,2369.4,2369.3,3.29]
[1726225057018,3.94519788,2369.4,2369.3,3.29]
[1726225057616,1.18412,2369.4,2369.3,3.29]
[1726225058017,0.7621,2369.4,2369.3,3.71204]
[1726225058221,1.18412,2369.4,2369.3,3.29]
[1726225060023,3.94817293,2369.4,2369.3,3.29]
[1726225062825,5.00323293,2369.4,2369.3,3.29]
[1726225063025,0.42211,2368.9,2368.8,0.099]
[1726225063215,2.21210151,2369.0,2368.8,0.42213]
[1726225063519,2.63421151,2368.9,2368.7,3.71214]
[1726225063720,2.08114642,2368.8,2368.7,3.29]
[1726225063924,2.08114642,2368.8,2368.7,3.71215]
[1726225064122,1.65901642,2368.8,2368.7,3.71215]
[1726225064511,2.08113642,2368.9,2368.7,3.71215]
[1726225064720,1.65901642,2368.8,2368.7,3.71215]
[1726225064922,2.08113642,2368.9,2368.7,3.71215]
[1726225065123,2.08113642,2368.9,2368.8,0.42213]
[1726225065326,0.42212,2368.9,2368.7,3.71214]
[1726225065518,1.65887345,2368.8,2368.7,3.71214]
[1726225068621,2.08100345,2368.8,2368.7,3.71214]
[1726225069021,1.65887345,2368.8,2368.7,3.71214]
[1726225070330,2.08100345,2368.8,2368.7,3.71214]
[1726225070628,1.65887345,2368.8,2368.7,3.71214]
[1726225071621,2.08100345,2368.8,2368.7,3.71214]
[1726225072226,1.65887345,2368.8,2368.7,3.71214]
[1726225072822,2.08100345,2368.8,2368.7,3.71214]
[1726225073924,1.65887345,2368.8,2368.7,3.71214]
[1726225074122,2.45660345,2368.8,2368.7,3.71214]
[1726225074525,2.03447345,2368.8,2368.7,3.71214]
[1726225075228,2.45660345,2368.8,2368.7,3.71214]
[1726225075427,0.3756,2368.8,2368.7,3.71214]
[1726225076132,0.3756,2368.8,2368.7,1.94214]
[1726225076323,2.03370516,2368.8,2368.7,1.94214]
[1726225076524,1.65810516,2368.8,2368.7,1.94214]
[1726225077029,2.08023516,2368.8,2368.7,1.94214]
[1726225080230,1.65810516,2368.8,2368.7,1.94214]
[1726225080429,2.08023516,2368.8,2368.7,1.94214]
[1726225082839,1.65810516,2368.8,2368.7,1.94214]
[1726225083227,2.08021516,2368.9,2368.8,0.42213]
[1726225083430,2.08021516,2368.9,2368.8,0.83003]
[1726225083639,1.65810516,2368.9,2368.8,0.83003]
[1726225083943,2.08021516,2368.9,2368.8,0.83003]
[1726225085231,2.08021516,2368.9,2368.8,0.42213]
[1726225086740,1.65810516,2368.9,2368.8,0.42213]
[1726225087638,2.08022516,2368.9,2368.8,0.42213]
[1726225089743,3.43621151,2369.0,2368.9,0.42211]
[1726225090937,3.43621151,2369.0,2368.7,1.52]
[1726225091142,2.07977357,2368.9,2368.8,0.42212]
[1726225091342,1.65766357,2368.9,2368.8,0.42212]
[1726225094848,2.07977357,2368.9,2368.8,0.42212]
[1726225095340,0.42211,2368.9,2368.8,0.42212]
[1726225096241,0.42211,2368.9,2368.7,1.52]
[1726225096242,1.65788954,2369.0,2368.9,0.42211]
[1726225096441,2.08030529,2369.0,2368.9,1.94211]
[1726225096637,0.4221,2369.0,2368.9,1.94211]
[1726225096837,2.08030678,2369.0,2368.9,1.94211]
[1726225097045,0.4221,2369.0,2368.9,1.94211]
[1726225097242,2.63420151,2369.0,2368.9,1.94211]
[1726225097545,2.21210151,2369.0,2368.9,1.94211]
[1726225097844,2.63419151,2369.0,2368.9,1.94211]
[1726225098944,1.65890768,2369.0,2368.9,8.27427]
[1726225099148,1.65882969,2369.1,2369.0,1.47733]
[1726225099341,2.21210151,2369.2,2369.1,0.42208]
[1726225099848,2.63416151,2369.2,2369.1,0.42208]
[1726225101045,2.21210151,2369.2,2369.1,0.42208]
[1726225101748,2.21210151,2369.2,2369.1,1.47728]
[1726225102952,2.21210151,2369.3,2369.2,0.42206]
[1726225103152,2.21210151,2369.3,2369.2,1.94206]
[1726225103744,2.63414151,2369.3,2369.2,1.94206]
[1726225103945,3.18716689,2369.4,2369.3,0.42204]
[1726225106858,0.42204,2369.4,2369.3,0.42204]
[1726225107248,2.76512689,2369.4,2369.2,1.52]
[1726225107454,2.21246591,2369.3,2369.2,1.94206]
[1726225108157,3.56433689,2369.5,2369.2,2.57515]
[1726225108353,3.14232689,2369.5,2369.4,1.94202]
[1726225109357,3.56432689,2369.5,2369.4,1.94202]
[1726225109556,2.21156946,2369.5,2369.4,1.94202]
[1726225109761,2.21156946,2369.5,2369.4,2.99708]
[1726225109950,3.14382689,2369.7,2369.4,2.99708]
[1726225109951,2.21156946,2369.6,2369.5,0.422]
[1726225110150,2.21156946,2369.6,2369.5,1.942]
[1726225110851,2.63355946,2369.6,2369.5,1.942]
[1726225111054,2.21156946,2369.6,2369.5,1.942]
[1726225111655,3.56579689,2369.7,2369.6,0.42199]
[1726225111656,2.59026946,2369.7,2369.6,0.42199]
[1726225112054,2.59026946,2369.7,2369.6,0.81239]
[1726225112956,2.21156946,2369.7,2369.6,0.81239]
[1726225113355,0.82546,2369.8,2369.7,0.42197]
[1726225113560,6.71023128,2370.0,2369.7,1.52]
[1726225113858,2.40922106,2370.0,2369.9,1.47677]
[1726225114053,2.40922106,2370.0,2369.9,1.94193]
[1726225114363,2.40926017,2370.0,2369.9,2.70373]
[1726225115151,2.40926017,2370.0,2369.9,1.18373]
[1726225115370,1.65589563,2370.3,2370.2,2.5313]
[1726225115664,2.20926017,2370.8,2370.7,0.42179]
[1726225115964,2.20926017,2370.9,2370.8,0.42177]
[1726225116255,2.63100017,2371.0,2370.9,0.42175]
[1726225116458,6.57626795,2371.1,2370.7,3.29]
[1726225116661,0.42175,2371.0,2370.8,0.79407]
[1726225116857,0.42174,2371.0,2370.8,0.79407]
[1726225117157,6.57626795,2371.1,2370.9,0.42175]
[1726225117364,0.42174,2371.0,2370.9,0.42175]
[1726225117559,0.42174,2371.0,2370.8,0.3723]
[1726225117866,0.42178,2370.8,2370.4,3.29]
[1726225118159,0.42178,2370.8,2370.6,0.4218]
[1726225118358,0.42178,2370.8,2370.5,0.42183]
[1726225118359,3.62958,2370.8,2370.5,0.42183]
[1726225118554,3.62958,2370.8,2370.6,0.4218]
[1726225119253,3.2078,2370.8,2370.4,3.6685]
[1726225119563,0.7871,2370.7,2370.6,0.4218]
[1726225121960,1.20889,2370.7,2370.6,0.4218]
[1726225122759,0.7871,2370.7,2370.6,0.4218]
[1726225123360,1.20889,2370.7,2370.6,0.4218]
[1726225123564,0.7871,2370.7,2370.6,0.4218]
[1726225125265,1.20889,2370.7,2370.6,0.4218]
[1726225125663,0.7871,2370.7,2370.6,0.4218]
[1726225125970,1.20889,2370.7,2370.6,0.4218]
[1726225130065,0.7871,2370.7,2370.4,3.6685]
[1726225130263,1.2089,2370.7,2370.6,0.42181]
[1726225133671,1.20891,2370.7,2370.6,0.42181]
[1726225135775,0.42188,2370.2,2370.1,4.297]
[1726225136076,0.42189,2370.2,2370.1,0.42188]
[1726225136275,0.42189,2370.2,2370.1,1.94188]